Cogmind - Beta 13 @@@ ROGUE MODE // 2024.03.23 @ 04:59:56 Player: f_ Result: Destroyed by Y-45 Defender with Heavy Assault Rifle Performance ------------- Evolutions (2) 1000 Regions Visited (6) 1200 Robots Destroyed (99) 495 Value Destroyed (2408) 2408 Prototype IDs (33) 660 Alien Tech Used (0) 0 Bonus (1034) 1034 TOTAL SCORE: 6797 Bonus ------- High Alert Combat Kills 335 Follower Combat Kills 199 Entered Garrisons 200 Aligned with FarCom 300 Cogmind --------- Core Integrity 0/550 Matter 300/300 Energy 315/315 System Corruption 2% Temperature Cool (0) Movement Core (400) Ox7 Location -8/Garrison Parts ------- > --- POWER (1) -------- Neutrino Core > --- PROPULSION (2) --- (None) > --- UTILITY (6) ------ Advanced Cooling System Small Storage Unit Improved Signal Interpreter > --- WEAPON (2) ------- Lance > --- INVENTORY (8) ---- Neutrino Core Improved Sensor Array Particle Gun AWS/Gauss Mass Driver Field Lobotomy Kit (5) Peak State ------------ > --- POWER ------------ Improved Deuterium Engine > --- PROPULSION ------- Improved Aluminum Leg Carbon-fiber Leg > --- UTILITY ---------- Power Amplifier Advanced Heat Sink Small Storage Unit Improved Signal Interpreter Layered Light Armor Plating Remote Shield > --- WEAPON ----------- Heavy EM Shotgun Gauss Rifle > --- INVENTORY -------- Improved Sensor Array Arc Projector Heavy Particle Cannon AWS/Gauss Datajack Field Lobotomy Kit Katana [Rating: 44] Favorites ----------- Power Ion Engine Engine Ion Engine Power Core Light Nuclear Core Propulsion Aluminum Leg Leg Aluminum Leg Hover Unit Hover Unit Flight Unit Improved Flight Unit Utility Small Storage Unit Device Improved Sensor Array Storage Small Storage Unit Processor Improved Signal Interpreter Protection Reflective Plating Weapon EM Pulse Gun Energy Gun EM Pulse Gun Energy Cannon Light EM Pulse Cannon Ballistic Gun AWS/Gauss Ballistic Cannon Improved Light Cannon Special Weapon Field Lobotomy Kit Impact Weapon Great Maul Slashing Weapon Katana Piercing Weapon Lance Special Melee Weapon Datajack Build | -11 -10 -10 -10 -9 -8 -8 ------- Run | Yrd Mat Min Exi Min Mat Gar Slots Evolved 4 | . . . . . 4 . Power . | . . . . . . . Propulsion . | . . . . . . . Utility 4 | . . . . . 4 . Weapon . | . . . . . . . Parts Attached 127 | 7 22 7 7 . 63 21 Power 16 | 2 3 2 1 . 5 3 Engine 11 | 2 3 2 1 . 3 . Core 5 | . . . . . 2 3 Reactor . | . . . . . . . Propulsion 24 | 2 5 3 . . 12 2 Treads . | . . . . . . . Leg 21 | 2 3 3 . . 11 2 Wheel . | . . . . . . . Hover 2 | . 2 . . . . . Flight 1 | . . . . . 1 . Utility 35 | . 5 . 4 . 20 6 Device 15 | . 2 . 1 . 7 5 Storage 7 | . 2 . 3 . 1 1 Processor 3 | . 1 . . . 2 . Hackware . | . . . . . . . Protection 10 | . . . . . 10 . Artifact . | . . . . . . . Weapon 52 | 3 9 2 2 . 26 10 Energy Gun 22 | 2 7 . . . 10 3 Energy Cannon 10 | . . 1 . . 7 2 Ballistic Gun 11 | 1 1 1 1 . 5 2 Ballistic Cannon 2 | . 1 . . . 1 . Launcher . | . . . . . . . Special Weapon 1 | . . . 1 . . . Impact Weapon 2 | . . . . . 2 . Slashing Weapon 1 | . . . . . . 1 Piercing Weapon 1 | . . . . . . 1 Special Melee Weapon 2 | . . . . . 1 1 Unidentified Prototypes 9 | . . . 3 . 6 . Parts Lost 25 | . 3 4 . . 2 16 Power 3 | . 1 . . . . 2 Propulsion 8 | . 1 2 . . 1 4 Utility 6 | . . . . . 1 5 Weapon 8 | . 1 2 . . . 5 Highest Loss Streak 12 | . 2 1 . . 1 12 To Critical Strikes . | . . . . . . . Average Slot Usage (%) 93 | . 94 97 90 85 96 84 Engine 8 | . 13 14 14 14 4 4 Core 2 | . . . . . 4 4 Leg 21 | . 24 25 28 28 17 17 Device 14 | . 11 14 4 . 17 21 Storage 8 | . 9 . 9 14 9 9 Processor 9 | . 2 14 14 14 9 9 Protection 8 | . . . . . 17 3 Energy Gun 9 | . 27 16 . . 4 4 Energy Cannon 3 | . . 6 4 . 5 2 Ballistic Gun 3 | . . 4 14 14 2 2 Impact Weapon 1 | . . . . . 2 . Naked Turns . | . . . . . . . Heaviest Build 36 | 7 15 11 22 20 36 36 Greatest Support 30 | 20 20 20 20 20 30 28 Greatest Overweight (x) 2 | . 1 2 1 . 2 2 Average Overweight (x) . | . . . . . . . Largest Inventory Capacity 8 | 5 8 5 8 8 8 8 Average Capacity 7 | 5 6 5 6 8 8 8 Most Carried 8 | 4 8 5 6 5 8 8 Average Carried 6 | 2 5 4 4 5 7 7 Final Capacity 8 | 5 5 5 8 8 8 8 Final Carried 8 | 3 5 5 5 5 8 7 Class Distribution -------------------- 32% | Mutant 32% | Scavenger-Skirmisher 21% | Scavenger-Mutant 13% | Scavenger-Assassin Dominant Class ---------------- Mutant | -10/Materials Scavenger-Mutant | -10/Mines Mutant | -10/Exiles Mutant | -9/Mines Scavenger-Skirmisher | -8/Materials Scavenger-Mutant | -8/Garrison Resources | -11 -10 -10 -10 -9 -8 -8 ----------- Run | Yrd Mat Min Exi Min Mat Gar Matter Collected 1648 | 242 319 76 . . 717 294 Remotely . | . . . . . . . Salvage Created 3492 | . 726 301 . . 1927 538 Parts 223 | . 42 22 . . 121 38 Haulers Intercepted 5 | . 1 . . . 4 . Recyclers Shooed 4 | . 1 . . . 3 . Parts Field Recycled . | . . . . . . . Retrieved Matter . | . . . . . . . Parts Self-Destructed . | . . . . . . . Prevented . | . . . . . . . Kills | -11 -10 -10 -10 -9 -8 -8 ------- Run | Yrd Mat Min Exi Min Mat Gar Combat Hostiles Destroyed 71 | . 10 10 . . 33 18 Melee 3 | . . . . . . 3 Guns 39 | . 5 7 . . 17 10 Cannons 16 | . . 2 . . 11 3 AOE 5 | . 2 1 . . 1 1 Classes Destroyed 15 | . 8 . . . 4 3 Worker 6 | . 1 . . . 5 . Builder 1 | . 1 . . . . . Hauler 5 | . 1 . . . 4 . Recycler 5 | . 3 . . . 2 . Operator 3 | . 1 . . . 2 . Watcher 8 | . 3 . . . 5 . Swarmer 29 | . 3 6 . . 12 8 Cutter 2 | . . . . . . 2 Grunt 27 | . 7 4 . . 13 3 Brawler 1 | . . . . . . 1 Duelist 1 | . . . . . 1 . Protector 1 | . . . . . 1 . Sentry 8 | . . . . . 5 3 Hunter 1 | . . . . . 1 . Programmer 1 | . . . . . . 1 Best Kill Streak 5 | . 4 3 . . 5 5 Combat Bots Only 5 | . 3 3 . . 4 5 Max Kills in Single Turn 3 | . 3 1 . . 2 2 Gunslinging 1 | . . . . . . 1 Exploded 2 | . 2 1 . . 1 1 Melee 1 | . . . . . . 1 Uniques/NPCs Destroyed . | . . . . . . . Combat | -11 -10 -10 -10 -9 -8 -8 -------- Run | Yrd Mat Min Exi Min Mat Gar Hostile Shots Fired 368 | . 44 46 . . 103 175 Missed 89 | . 11 7 . . 24 47 Damage Taken 3647 | . 579 491 . . 1202 1375 Core 709 | . 62 95 . . 256 296 Absorbed by Shields 91 | . . . . . . 91 Redirected to Shielding 8 | . . . . . 8 . Ignored by Resistances 12 | . . . . . 12 . Regen/Repaired (Parts) 88 | . 24 . . . 64 . Core Remaining (%) 68 | 100 . . . 37 . . Volleys Fired 212 | . 59 26 . . 84 43 Largest 2 | . 2 2 . . 2 2 Hottest 125 | . 100 100 . . 125 105 Shots Fired 397 | . 107 45 . . 173 72 Gun 308 | . 107 40 . . 114 47 Cannon 89 | . . 5 . . 59 25 Launcher . | . . . . . . . Special . | . . . . . . . Kinetic 91 | . 6 . . . 49 36 Thermal 137 | . 57 5 . . 50 25 Explosive . | . . . . . . . Electromagnetic 169 | . 44 40 . . 74 11 Robot Hit Streak 17 | . 14 9 . . 17 11 Robot Miss Streak 8 | . 4 4 . . 5 8 Penetration Max 1 | . . . . . 1 1 Secondary Targets 4 | . . 1 . . . 3 Max Gunslinging Chain 1 | . . 1 . . . 1 Autonomous 36 | . . . . . 36 . Shots Hit Robots 266 | . 64 27 . . 126 49 Core Hits 132 | . 28 16 . . 67 21 Critical Kills 2 | . . . . . 1 1 Critical Parts Destroyed 2 | . . . . . 2 . Critical Strikes 11 | . 6 . . . 4 1 Burn 5 | . 5 . . . . . Meltdown 1 | . . . . . . 1 Corrupt 2 | . 1 . . . 1 . Smash 3 | . . . . . 3 . Melee Attacks 74 | . . . . . 52 22 Impact 49 | . . . . . 49 . Slashing 15 | . . . . . . 15 Piercing 6 | . . . . . . 6 Sneak Attacks 7 | . . . . . 7 . Combat Hostiles . | . . . . . . . Follow-up Attacks . | . . . . . . . Damage Inflicted 6169 | . 1037 457 . . 3475 1200 Guns 3367 | . 836 326 . . 1697 508 Cannons 1193 | . . 34 . . 791 368 Explosions 586 | . 201 97 . . 225 63 Melee 1023 | . . . . . 762 261 Ramming . | . . . . . . . Kinetic 1315 | . 31 . . . 894 390 Thermal 2009 | . 578 131 . . 869 431 Explosive . | . . . . . . . Electromagnetic 1822 | . 428 326 . . 950 118 Impact 762 | . . . . . 762 . Slashing 66 | . . . . . . 66 Piercing 195 | . . . . . . 195 Highest Corruption 3 | . 3 3 3 3 1 2 Average Corruption 1 | . 2 3 3 3 1 1 Corruption Purged . | . . . . . . . Corruption Blocked . | . . . . . . . Effects 74 | . 13 15 8 7 17 14 Message Errors 26 | . 3 8 1 4 5 5 Matter Fused 12 | . 3 3 2 . 3 1 Heat Flow Errors 9 | . 2 1 1 1 3 1 Energy Discharges 12 | . 3 1 1 2 4 1 Parts Fused 1 | . . . . . . 1 Data Loss (minor) 7 | . . 2 2 . 1 2 Data Loss (major) 4 | . . . 1 . . 3 Misfires 2 | . 1 . . . 1 . Alerts 1 | . 1 . . . . . Overload Shots . | . . . . . . . Overflow Damage 379 | . 14 19 . . 330 16 Projectiles 4 | . . . . . 3 1 Explosions 95 | . 14 19 . . 62 . Melee 280 | . . . . . 265 15 Knockbacks 4 | . . . . . 4 . Impact 3 | . . . . . 3 . Kinetic 1 | . . . . . 1 . Secondary . | . . . . . . . Self-Inflicted Damage 380 | . 118 95 . . 121 46 Shots 9 | . 3 2 . . 3 1 Rammed . | . . . . . . . Targets Rammed . | . . . . . . . Kicked . | . . . . . . . Crushed . | . . . . . . . Highest Temperature 409 | . 409 276 112 226 401 197 Average Temperature 104 | . 110 72 56 116 119 80 Received Heat Transfer 1035 | . 240 117 . . 432 246 Effects 6 | . 4 . . . 2 . Shutdowns 4 | . 2 . . . 2 . Matter Decay 1 | . 1 . . . . . Short Circuit 1 | . 1 . . . . . Siege Activations . | . . . . . . . Robots Corrupted 4 | . 1 . . . 3 . Combat Hostiles 2 | . 1 . . . 1 . Parts Fried 12 | . 2 1 . . 9 . Impact Corruptions 11 | . . . . . 11 . Robots Melted 3 | . 2 . . . . 1 Combat Hostiles 3 | . 2 . . . . 1 Parts Melted 9 | . 6 . . . 1 2 Heat Transferred 3591 | . 1730 124 . . 1219 518 Parts Sabotaged . | . . . . . . . Parts Stolen . | . . . . . . . Parts Stripped . | . . . . . . . Power Chain Reactions 9 | . 3 2 . . 3 1 Alert | -11 -10 -10 -10 -9 -8 -8 ------- Run | Yrd Mat Min Exi Min Mat Gar Peak Influence 903 | . 169 126 . . 748 903 Initial 488 | . . . . . . 488 Average 244 | . 72 99 . . 247 729 Maximum Alert Level 3 | . . . . . 3 3 Low Security (%) 61 | 100 100 100 . 100 48 . Level 1 13 | . . . . . 27 . Level 2 14 | . . . . . 21 27 Level 3 10 | . . . . . 1 72 Level 4 . | . . . . . . . Level 5 . | . . . . . . . High Security . | . . . . . . . Max Security . | . . . . . . . Squads Dispatched 9 | . 1 . . . 8 . Investigation 2 | . . . . . 2 . Extermination . | . . . . . . . Reinforcement 2 | . 1 . . . 1 . Assault 1 | . . . . . 1 . Garrison 4 | . . . . . 4 . Intercept . | . . . . . . . Searches Triggered . | . . . . . . . Construction Impeded 1 | . . . . . 1 . Haulers Reinforced . | . . . . . . . Active Scanning Responses . | . . . . . . . Cargo Convoy Interrupts . | . . . . . . . Stealth | -11 -10 -10 -10 -9 -8 -8 --------- Run | Yrd Mat Min Exi Min Mat Gar Distress Signals 3 | . 1 . . . 2 . Communications Jammed . | . . . . . . . Distress Signals . | . . . . . . . Times Spotted 101 | . 16 9 . . 52 24 Peak Tracking Total 9 | . 3 3 . . 5 9 Tactical Retreats 11 | . 1 . . . 5 5 Traps | -11 -10 -10 -10 -9 -8 -8 ------- Run | Yrd Mat Min Exi Min Mat Gar Traps Triggered 8 | . 4 . . . 1 3 Indirectly . | . . . . . . . Trap Hack Attempts 70 | . . . . . . 70 Triggered . | . . . . . . . Disarmed 7 | . 6 . . . . 1 Reprogrammed 8 | . . . . . 3 5 Reused . | . . . . . . . Traps Extracted . | . . . . . . . Installed . | . . . . . . . Triggered . | . . . . . . . Machines | -11 -10 -10 -10 -9 -8 -8 ---------- Run | Yrd Mat Min Exi Min Mat Gar Machines Disabled 4 | . . 1 . . 3 . Max in Single Turn 2 | . . 1 . . 2 . Machines Repaired . | . . . . . . . Machines Dismantled . | . . . . . . . Machines Sabotaged . | . . . . . . . Overloaded Fab Kills . | . . . . . . . Hacking | -11 -10 -10 -10 -9 -8 -8 --------- Run | Yrd Mat Min Exi Min Mat Gar Machines Accessed 25 | . 5 1 5 . 13 1 Terminals 13 | . 3 1 . . 8 1 Fabricators . | . . . . . . . Repair Stations 2 | . 1 . . . 1 . Recycling Units 2 | . 1 . . . 1 . Scanalyzers 2 | . . . . . 2 . Garrison Access 1 | . . . . . 1 . Total Hacks 103 | . 16 1 50 . 34 2 Successful 87 | . 13 1 50 . 22 1 Failed 16 | . 3 . . . 12 1 Catastrophic . | . . . . . . . Database Lockouts . | . . . . . . . Manual 8 | . . . 8 . . . Terminals 32 | . 12 1 . . 17 2 Fabricators . | . . . . . . . Repair Stations 6 | . 3 . . . 3 . Recycling Units 5 | . 1 . . . 4 . Scanalyzers 9 | . . . . . 9 . Garrison Access 1 | . . . . . 1 . Terminal Hacks 71 | . 10 1 50 . 9 1 Record 49 | . . . 49 . . . Prototype ID Bank 2 | . 2 . . . . . Branch Access Points 2 | . 1 . . . 1 . Emergency Access Points 2 | . 1 . . . . 1 Alert Level 5 | . 2 . . . 3 . Locate Traps 2 | . 1 . . . 1 . Disarm Traps 1 | . 1 . . . . . Reprogram Traps 1 | . . . . . 1 . Dispatch Records 4 | . 1 . . . 3 . Maintenance Status 1 | . 1 . . . . . Zone Layout 1 | . . 1 . . . . Derelict Proto ID Bank 1 | . . . 1 . . . Fabricator Hacks . | . . . . . . . Repair Station Hacks 4 | . 2 . . . 2 . Scan Component 2 | . 1 . . . 1 . Repair 2 | . 1 . . . 1 . Recycling Unit Hacks 3 | . 1 . . . 2 . Report Inventory 2 | . 1 . . . 1 . Retrieve Components 1 | . . . . . 1 . Scanalyzer 8 | . . . . . 8 . Insert Component 4 | . . . . . 4 . Analyze 4 | . . . . . 4 . Garrison Access Hacks 1 | . . . . . 1 . Unlock Access 1 | . . . . . 1 . Unauthorized Hacks . | . . . . . . . Terminals . | . . . . . . . Fabricators . | . . . . . . . Repair Stations . | . . . . . . . Recycling Units . | . . . . . . . Scanalyzers . | . . . . . . . Garrison Access . | . . . . . . . Data Cores Recovered 1 | . . . . . 1 . Used . | . . . . . . . Hacking Detections 16 | . 3 1 . . 11 1 Full Trace Events 4 | . 2 . . . 2 . Feedback Events . | . . . . . . . Feedback Blocked . | . . . . . . . Robot Schematics Acquired . | . . . . . . . Robots Built . | . . . . . . . Authchips . | . . . . . . . Time . | . . . . . . . Total Robot Build Rating . | . . . . . . . Part Schematics Acquired 4 | . . . . . 4 . Parts Built . | . . . . . . . Authchips . | . . . . . . . Time . | . . . . . . . Total Part Build Rating . | . . . . . . . Parts Repaired 2 | . 1 . . . 1 . Time 52 | . 26 . . . 26 . Parts Recycled . | . . . . . . . Recycled Matter . | . . . . . . . Retrieved Matter . | . . . . . . . Retrieved Components 9 | . . . . . 9 . Parts Scanalyzed 4 | . . . . . 4 . Part Schematics Acquired 4 | . . . . . 4 . Parts Damaged . | . . . . . . . Bothacking | -11 -10 -10 -10 -9 -8 -8 ------------ Run | Yrd Mat Min Exi Min Mat Gar Used RIF Installer . | . . . . . . . Robots Hacked 1 | . . . . . 1 . Non-combat 1 | . . . . . 1 . Combat . | . . . . . . . Robot Hacks Applied 1 | . . . . . 1 . no_distress 1 | . . . . . 1 . Relay Couplers Released . | . . . . . . . Fabnet Peak Effective % . | . . . . . . . Robots Rewired . | . . . . . . . Allies Hacked . | . . . . . . . Hacks Repelled . | . . . . . . . Allies | -11 -10 -10 -10 -9 -8 -8 -------- Run | Yrd Mat Min Exi Min Mat Gar Total Allies 3 | . . . . 3 . . Largest Group 3 | . . . . 3 3 . Highest-Rated Group 40 | . . . . 40 40 . Highest-Rated Ally 16 | . . . . 16 16 . Total Orders . | . . . . . . . Ally Attacks 45 | . . . . . 45 . Total Damage 462 | . . . . . 462 . Kills 8 | . . . . . 8 . Allies Corrupted . | . . . . . . . Allies Melted . | . . . . . . . Intel | -11 -10 -10 -10 -9 -8 -8 ------- Run | Yrd Mat Min Exi Min Mat Gar Robot Analysis Total . | . . . . . . . Derelict Logs Recovered 4 | . . 2 . 2 . . Drone Launches . | . . . . . . . Drone Recoveries . | . . . . . . . Exploration | -11 -10 -10 -10 -9 -8 -8 ------------- Run | Yrd Mat Min Exi Min Mat Gar Turns Passed 7736 | 62 1455 803 657 385 3411 963 Spaces Moved 4287 | 42 962 553 528 284 1530 388 Core 12 | 5 . 2 . . . 5 Treads . | . . . . . . . Legs 4132 | 37 819 551 528 284 1530 383 Wheels . | . . . . . . . Hover 143 | . 143 . . . . . Flight . | . . . . . . . Fastest Speed 50 | 50 56 120 120 120 120 100 Average Speed 132 | 111 110 120 120 120 153 150 Slowest Speed 260 | 120 190 150 190 120 260 260 Overloaded Moves . | . . . . . . . Propulsion Burnouts . | . . . . . . . Robots Hopped . | . . . . . . . Cave-ins Triggered . | . . . . . . . Exploration Rate (%) 63 | 4 97 96 79 51 75 45 Regions Visited 6 Branch Regions 3 Pre-discovered Areas 3 | . . 1 1 1 . . Known Exits Taken 5 | . 1 1 1 1 1 . Unknown Exits Taken 1 | 1 . . . . . . Scrap Searched 1 | . . 1 . . . . Spaces Dug 36 | . . . . . 36 . Terrain Destroyed 127 | . 11 11 . . 104 1 Melee 36 | . . . . . 36 . Projectile 41 | . . . . . 41 . AOE 50 | . 11 11 . . 27 1 Terrain Rammed . | . . . . . . . Walls Destroyed . | . . . . . . . Machines Disabled . | . . . . . . . Actions | -11 -10 -10 -10 -9 -8 -8 --------- Run | Yrd Mat Min Exi Min Mat Gar Total 5862 | 56 1248 647 552 328 2369 662 Wait 888 | . 169 57 . 45 534 83 Move 4282 | 41 961 552 527 283 1530 388 Hop . | . . . . . . . Pick Up 103 | 8 23 2 8 . 47 15 Fast Attach 21 | . 2 2 2 . 11 4 Attach 48 | 5 8 2 2 . 20 11 Detach 8 | . 1 . . . 7 . Swap 58 | 2 12 3 3 . 32 6 Drop 88 | . 13 3 10 . 52 10 Fire 212 | . 59 26 . . 84 43 Melee 74 | . . . . . 52 22 Ram . | . . . . . . . Kick . | . . . . . . . Crush . | . . . . . . . Escape Stasis 10 | . . . . . . 10 Rewire . | . . . . . . . Trap 70 | . . . . . . 70 Miscellaneous . | . . . . . . . Route ------- -11/Scrapyard -10/Materials (discovered 5 exits: *Mat x3 / *Min x2) -10/Mines (discovered 3 exits: *Mat x2 / *Exi) -10/Exiles (discovered 2 exits: *Min x2) -9/Mines -8/Materials (discovered 4 exits: *Fac x3 / Gar) -8/Garrison History --------- Turn | Location | Event 3 | -11/Scrapyard | Discovered new exit (range 14) 63 | -11/Scrapyard | Entered Materials 100 | -10/Materials | Discovered new exit (range 16) 187 | -10/Materials | Identified exit to Mines 318 | -10/Materials | Build established: Mutant 554 | -10/Materials | Discovered new exit (range 16) 1027 | -10/Materials | Discovered new exit (range 9) 1217 | -10/Materials | Identified exit to Materials 1336 | -10/Materials | Discovered exit to Materials (range 7) 1419 | -10/Materials | Repaired EM Pulse Gun 1518 | -10/Materials | Entered Mines 1591 | -10/Mines | Discovered exit to Materials (range 6) 1831 | -10/Mines | Discovered exit to Materials (range 16) 1930 | -10/Mines | Build established: Scavenger-Mutant 1964 | -10/Mines | Core integrity fell below 50% 2000 | -10/Mines | Deemed a non-threat by the Exiles lab entrance 2000 | -10/Mines | Discovered new exit (range 5) 2004 | -10/Mines | Identified exit to Exiles 2083 | -10/Mines | Learned 4 Materials zone layouts 2141 | -10/Mines | Received a Rocket Launcher from a helpful Derelict 2159 | -10/Mines | Learned location of Mines (-9) 2321 | -10/Mines | Entered Exiles 2341 | -10/Exiles | Discovered new exit (range 15) 2356 | -10/Exiles | Identified exit to Mines 2384 | -10/Exiles | Met 8R-AWN 2409 | -10/Exiles | Met EX-HEX 2473 | -10/Exiles | Met EX-BIN 2486 | -10/Exiles | Aligned with FarCom system 2487 | -10/Exiles | Given EX-Vault access code 2527 | -10/Exiles | Opened EX-Vault 2532 | -10/Exiles | Found Prototype Special Weapon 2533 | -10/Exiles | Identified Field Lobotomy Kit 2536 | -10/Exiles | Found Prototype Device 2536 | -10/Exiles | Identified Cloak of Protection 2544 | -10/Exiles | Found Prototype Ballistic Gun 2544 | -10/Exiles | Identified AWS/Gauss 2610 | -10/Exiles | Warned to stay clear of 0b10 Research branches 2735 | -10/Exiles | Met EX-DEC 2758 | -10/Exiles | Visited The Gauntlet 2814 | -10/Exiles | Learned location of Zion (-7) 2830 | -10/Exiles | Build established: Mutant 2964 | -10/Exiles | Discovered exit to Mines (range 14) 2978 | -10/Exiles | Stole three prototypes: AWS/Gauss, Cloak of Protection, Field Lobotomy Kit 2978 | -10/Exiles | Entered Mines 3023 | -9/Mines | Learned Materials garrison access intel 3107 | -9/Mines | Discovered new exit (range 11) 3121 | -9/Mines | Identified exit to Materials 3255 | -9/Mines | Assisted by bots powering up and referring to "LRC-V3" 3363 | -9/Mines | Entered Materials 3363 | -8/Materials | Accompanied by 3 allies 3363 | -8/Materials | Evolved 4 slots: Utility x4 3365 | -8/Materials | Loaded intel: 1 garrison access location 3659 | -8/Materials | Build established: Scavenger-Skirmisher 4321 | -8/Materials | Repaired Aluminum Leg 5023 | -8/Materials | Discovered new exit (range 13) 5336 | -8/Materials | Build established: Scavenger-Assassin 5368 | -8/Materials | Identified exit to Factory 5662 | -8/Materials | Discovered exit to Factory (range 16) 6035 | -8/Materials | Garrison activated, responded to threat 6231 | -8/Materials | Garrison activated, responded to threat 6405 | -8/Materials | Discovered exit to Factory (range 15) 6502 | -8/Materials | Build established: Scavenger-Skirmisher 6563 | -8/Materials | First assault squad dispatched 6774 | -8/Materials | Identified exit to Garrison 6774 | -8/Materials | Entered Garrison 7058 | -8/Garrison | Core integrity fell below 50% 7216 | -8/Garrison | Triggered checkpoint 7281 | -8/Garrison | Core integrity fell below 20% 7320 | -8/Garrison | Lost 12 parts (2p2n4u4w) 7589 | -8/Garrison | Build established: Scavenger-Mutant 7737 | -8/Garrison | Destroyed by Y-45 Defender with Heavy Assault Rifle Last Messages --------------- 07684_ Dropped Katana. 07684_ Acquired Lance. 07687_ Dropped Lgt. Nuclear Core. 07688_ Acquired Neutrino Core. 07704_ Acquired Adv. Cooling System. 07705_ Dropped Heat Sink. 07710_ Triggered Alarm Trap. 07710_ An alarm sounds. 07713_ Critical hit (Burn: +37). 07713_ Machine disabled. 07714_ Machine collapses. 07719_ Y-45 Defender destroyed. 07727_ Acquired 30 matter. 07728_ Machine collapses. 07729_ Aluminum Leg destroyed. 07730_ Machine collapses. 07730_ Datajack destroyed. 07733_ AA/:B7IQQS8